Cogmind - Beta 15 @@@ ROGUE MODE // 2025.08.31 @ 03:05:26 Player: Culibread Result: Self-destructed Performance ------------- Evolutions (3) 1500 Regions Visited (6) 1200 Robots Destroyed (46) 230 Value Destroyed (1400) 1400 Prototype IDs (1) 20 Alien Tech Used (0) 0 Bonus (0) 0 TOTAL SCORE: 4350 Bonus ------- None Cogmind --------- Core Integrity 560/700 Matter 300/300 Energy 150/150 System Corruption 1% Temperature Cool (0) Movement Treading (160) Location -7/Factory Parts ------- > --- POWER (2) -------- Micro Nuclear Core > --- PROPULSION (5) --- Light Treads > --- UTILITY (3) ------ Medium Storage Unit Weight Redist. System Weapon Cycler > --- WEAPON (3) ------- Minigun Minigun > --- INVENTORY (10) --- Nuclear Core Improved Heat Sink Coolant Injector Huge Storage Unit High-capacity Matter Pod (139) Bomb Drone Bay (16/16) Gatling Laser Missile Launcher Datajack Peak State ------------ > --- POWER ------------ Nuclear Core Nuclear Core > --- PROPULSION ------- Light Treads Light Treads Light Treads > --- UTILITY ---------- Medium Storage Unit Weapon Cycler High-powered Tractor Beam > --- WEAPON ----------- Minigun Minigun Minigun > --- INVENTORY -------- Improved Heat Sink Coolant Injector Huge Storage Unit High-capacity Matter Pod Weight Redist. System Bomb Drone Bay Minigun Grenade Launcher Datajack [Rating: 29] Favorites ----------- Power Improved Ion Engine Engine Improved Ion Engine Power Core Nuclear Core Propulsion Light Treads Treads Light Treads Utility Medium Storage Unit Device Weight Redist. System Storage Medium Storage Unit Weapon Medium Laser Energy Gun Medium Laser Ballistic Gun Minigun Ballistic Cannon Light Cannon Launcher Grenade Launcher Build | -11 -10 -10 -10 -9 -8 -7 ------- Run | Yrd Mat Min Exi Min Mat Fac Slots Evolved 6 | . . . . . 4 2 Power 1 | . . . . . 1 . Propulsion 3 | . . . . . 2 1 Utility 1 | . . . . . 1 . Weapon 1 | . . . . . . 1 Parts Attached 38 | 5 8 3 2 . 9 11 Power 6 | 1 . 1 . . 1 3 Engine 3 | 1 . 1 . . 1 . Core 3 | . . . . . . 3 Reactor . | . . . . . . . Propulsion 7 | 2 1 1 . . 2 1 Treads 7 | 2 1 1 . . 2 1 Leg . | . . . . . . . Wheel . | . . . . . . . Hover . | . . . . . . . Flight . | . . . . . . . Utility 13 | 1 3 1 2 . 2 4 Device 9 | . 1 1 1 . 2 4 Storage 4 | 1 2 . 1 . . . Processor . | . . . . . . . Hackware . | . . . . . . . Protection . | . . . . . . . Artifact . | . . . . . . . Weapon 12 | 1 4 . . . 4 3 Energy Gun 4 | 1 1 . . . 1 1 Energy Cannon . | . . . . . . . Ballistic Gun 5 | . 1 . . . 2 2 Ballistic Cannon 2 | . 1 . . . 1 . Launcher 1 | . 1 . . . . . Special Weapon . | . . . . . . . Impact Weapon . | . . . . . . . Slashing Weapon . | . . . . . . . Piercing Weapon . | . . . . . . . Special Melee Weapon . | . . . . . . . Unidentified Prototypes 1 | . . 1 . . . . Parts Lost 10 | . . 1 . . 2 7 Power . | . . . . . . . Propulsion 6 | . . 1 . . 1 4 Utility 1 | . . . . . . 1 Weapon 3 | . . . . . 1 2 Highest Loss Streak 2 | . . 1 . . 2 2 To Critical Strikes . | . . . . . . . Average Backups 7 | . 4 8 8 8 5 8 Power . | . . . . . . . Propulsion 1 | . 1 3 3 3 . . Utility 2 | . . 2 3 3 2 5 Weapon 1 | . 1 1 1 1 1 2 Tool/Special . | . . . . . . . Unused Backups 7 | . . 3 . . . 4 Power 1 | . . 1 . . . . Propulsion . | . . . . . . . Utility 2 | . . . . . . 2 Weapon 3 | . . 2 . . . 1 Tool/Special 1 | . . . . . . 1 Average Slot Usage (%) 91 | . 87 98 100 100 88 77 Engine 11 | . 14 14 14 14 10 2 Core 2 | . . . . . . 11 Treads 26 | . 27 27 28 28 34 17 Device 12 | . 5 12 14 14 17 14 Storage 12 | . 14 13 14 14 9 7 Energy Gun 10 | . 13 14 14 14 9 . Ballistic Gun 5 | . 7 . . . 1 22 Ballistic Cannon 8 | . 3 14 14 14 7 . Peak Build Rating 29 | 5 8 20 13 11 22 29 Average Rating 13 | 3 6 10 11 11 16 26 On Entrance 9 | . 5 8 11 11 11 22 Naked Turns . | . . . . . . . Heaviest Build 35 | 12 20 22 27 22 32 35 Greatest Support 86 | 40 46 46 46 46 86 86 Greatest Overweight (x) 1 | . . . . . . 1 Average Overweight (x) . | . . . . . . . Largest Inventory Capacity 25 | 8 25 25 10 10 25 10 Average Capacity 9 | 6 9 9 10 10 10 10 Most Carried 10 | 2 8 10 10 9 9 10 Average Carried 7 | . 4 9 9 9 6 9 Final Capacity 10 | 8 10 10 10 10 10 10 Final Carried 10 | 1 7 9 9 9 9 10 Class Distribution -------------------- 54% | Mutant 27% | Scavenger-Mutant 13% | Gunner 3% | Scavenger-Gunner Dominant Class ---------------- Mutant | -10/Materials Mutant | -10/Mines Mutant | -10/Exiles Mutant | -9/Mines Scavenger-Mutant | -8/Materials Gunner | -7/Factory Resources | -11 -10 -10 -10 -9 -8 -7 ----------- Run | Yrd Mat Min Exi Min Mat Fac Matter Collected 1615 | 207 221 223 . 31 136 797 Remotely 605 | . . . . . . 605 Salvage Created 1685 | . 325 268 . . 212 880 Parts 93 | . 21 18 . . 6 48 Haulers Intercepted 1 | . 1 . . . . . Recyclers Shooed 2 | . . 1 . . . 1 Parts Field Recycled . | . . . . . . . Retrieved Matter . | . . . . . . . Parts Self-Destructed . | . . . . . . . Prevented . | . . . . . . . Kills | -11 -10 -10 -10 -9 -8 -7 ------- Run | Yrd Mat Min Exi Min Mat Fac Combat Hostiles Destroyed 34 | . 4 9 . . 5 16 Guns 20 | . 2 1 . . 1 16 Cannons 11 | . . 8 . . 3 . AOE 2 | . 2 . . . . . Classes Destroyed 12 | . 6 2 . . 1 3 Worker 3 | . 1 1 . . . 1 Builder 1 | . 1 . . . . . Hauler 1 | . 1 . . . . . Recycler 4 | . 2 1 . . . 1 Operator 2 | . 2 . . . . . Watcher 1 | . . . . . . 1 Swarmer 10 | . . 6 . . . 4 Grunt 15 | . 4 2 . . 2 7 Brawler 1 | . . . . . . 1 Duelist 2 | . . . . . 1 1 Sentry 5 | . . 1 . . 2 2 Programmer 1 | . . . . . . 1 Best Kill Streak 7 | . 7 3 . . 2 5 Combat Bots Only 4 | . 2 3 . . 2 4 Max Kills in Single Turn 3 | . 3 1 . . 1 2 Gunslinging . | . . . . . . . Exploded 1 | . 1 . . . . . Melee . | . . . . . . . Uniques/NPCs Destroyed . | . . . . . . . Combat | -11 -10 -10 -10 -9 -8 -7 -------- Run | Yrd Mat Min Exi Min Mat Fac Hostile Shots Fired 180 | . 7 40 . . 28 105 Missed 42 | . 3 8 . . 3 28 Hits 138 | . 4 32 . . 25 77 Melee 3 | . . . . . 2 1 Projectile 135 | . 4 32 . . 23 76 Critical Strikes 5 | . . . . . 5 . Damage Taken 1912 | . 130 393 . . 416 973 Core 347 | . 42 75 . . 90 140 Absorbed by Shields . | . . . . . . . Core Remaining (%) 78 | 100 . . . 53 83 . Volleys Fired 111 | . 18 21 . . 27 45 Largest 3 | . 2 2 . . 2 3 Hottest 130 | . 80 80 . . 98 130 Shots Fired 244 | . 30 42 . . 38 134 Gun 205 | . 23 21 . . 27 134 Cannon 33 | . 1 21 . . 11 . Launcher 6 | . 6 . . . . . Special . | . . . . . . . Kinetic 173 | . 12 21 . . 11 129 Thermal 65 | . 12 21 . . 27 5 Explosive 6 | . 6 . . . . . Electromagnetic . | . . . . . . . Robot Hit Streak 15 | . 7 15 . . 14 10 Robot Miss Streak 4 | . 2 3 . . 2 4 Penetration Max . | . . . . . . . Secondary Targets 2 | . . . . . . 2 Max Gunslinging Chain 1 | . . . . . . 1 Shots Hit Robots 172 | . 19 33 . . 32 88 Core Hits 95 | . 21 13 . . 13 48 Critical Kills . | . . . . . . . Critical Parts Destroyed 1 | . . . . . . 1 Critical Strikes 5 | . . 2 . . 2 1 Burn 3 | . . 2 . . 1 . Destroy 1 | . . . . . . 1 Blast 1 | . . . . . 1 . Melee Attacks . | . . . . . . . Impact . | . . . . . . . Slashing . | . . . . . . . Piercing . | . . . . . . . Sneak Attacks . | . . . . . . . Combat Hostiles . | . . . . . . . Follow-up Attacks . | . . . . . . . Damage Inflicted 3284 | . 533 503 . . 468 1780 Guns 2255 | . 190 202 . . 280 1583 Cannons 491 | . 17 290 . . 184 . Explosions 507 | . 316 . . . . 191 Melee . | . . . . . . . Ramming 31 | . 10 11 . . 4 6 Kinetic 2110 | . 95 290 . . 184 1541 Thermal 711 | . 112 202 . . 280 117 Explosive 316 | . 316 . . . . . Electromagnetic 116 | . . . . . . 116 Impact . | . . . . . . . Slashing . | . . . . . . . Piercing . | . . . . . . . Highest Corruption 2 | . 2 2 2 . . 1 Average Corruption 1 | . 2 2 1 . . 1 Corruption Purged 2 | . . . 2 . . . Corruption Blocked . | . . . . . . . Effects 25 | . 4 15 5 . . 1 Message Errors 4 | . . 4 . . . . Matter Fused 6 | . . 2 3 . . 1 Heat Flow Errors 6 | . 1 3 2 . . . Energy Discharges 2 | . . 2 . . . . Parts Rejected 1 | . 1 . . . . . Data Loss (minor) 3 | . . 3 . . . . Data Loss (major) 2 | . 1 1 . . . . Alerts 1 | . 1 . . . . . Overload Shots . | . . . . . . . Overflow Damage 46 | . 1 . . . . 45 Projectiles . | . . . . . . . Explosions 46 | . 1 . . . . 45 Melee . | . . . . . . . Knockbacks 8 | . . 5 . . 2 1 Impact 2 | . . 1 . . . 1 Kinetic 5 | . . 3 . . 2 . Secondary 1 | . . 1 . . . . Self-Inflicted Damage 101 | . 91 . . . . 10 Shots 4 | . 3 . . . . 1 Rammed 10 | . 3 2 . . 3 2 Targets Rammed 11 | . 3 3 . . 3 2 Kicked . | . . . . . . . Crushed 1 | . . 1 . . . . Highest Temperature 265 | . 239 265 113 . 27 250 Average Temperature 66 | . 42 86 53 . 11 63 Received Heat Transfer 768 | . 24 129 . . 270 345 Effects 6 | . . 3 . . . 3 Interference 6 | . . 3 . . . 3 Siege Activations . | . . . . . . . Martial Activations . | . . . . . . . Shielding Activations . | . . . . . . . Robots Disrupted 1 | . . . . . . 1 Combat Hostiles . | . . . . . . . Robots Corrupted . | . . . . . . . Combat Hostiles . | . . . . . . . Parts Fried 1 | . . . . . . 1 Impact Corruptions . | . . . . . . . Robots Melted 1 | . . . . . 1 . Combat Hostiles 1 | . . . . . 1 . Parts Melted 4 | . 1 1 . . 2 . Heat Transferred 2111 | . 333 740 . . 888 150 Parts Sabotaged . | . . . . . . . Parts Stolen . | . . . . . . . Parts Stripped . | . . . . . . . Power Chain Reactions 1 | . . . . . . 1 Alert | -11 -10 -10 -10 -9 -8 -7 ------- Run | Yrd Mat Min Exi Min Mat Fac Maximum Alert Level 1 | . . . . . . 1 Low Security (%) 99 | 100 100 100 . 100 100 96 Level 1 . | . . . . . . 3 Level 2 . | . . . . . . . Level 3 . | . . . . . . . Level 4 . | . . . . . . . Level 5 . | . . . . . . . High Security . | . . . . . . . Max Security . | . . . . . . . Peak Influence 217 | . 101 116 . . 60 217 Initial 12 | . . . . . . 12 Average 26 | . 23 27 . . 9 46 Influence Increases 1087 | . 250 230 . . 130 477 Destroy 0b10 Robot/C 680 | . 80 180 . . 100 320 Destroy 0b10 Robot/NC 60 | . 35 10 . . . 15 Destroy Leader 154 | . 22 40 . . 30 62 Successful Hack 6 | . 6 . . . . . Disable Machine 75 | . 15 . . . . 60 Destroy Structure 22 | . 17 . . . . 5 Lose Combat Pursuer 90 | . 75 . . . . 15 Influence Decreases 882 | . 250 230 . . 102 300 Entered New Map 16 | . . . . . . 16 Time Decay 756 | . 250 220 . . 82 204 Lost Part 100 | . . 10 . . 20 70 Lost Ally 10 | . . . . . . 10 Squads Dispatched 5 | . 2 1 . . . 2 Investigation 1 | . . 1 . . . . Extermination 2 | . . . . . . 2 Reinforcement 2 | . 2 . . . . . Assault . | . . . . . . . Garrison . | . . . . . . . Intercept . | . . . . . . . Searches Triggered . | . . . . . . . Construction Impeded . | . . . . . . . Haulers Reinforced . | . . . . . . . Active Scanning Responses . | . . . . . . . Cargo Convoy Interrupts . | . . . . . . . Stealth | -11 -10 -10 -10 -9 -8 -7 --------- Run | Yrd Mat Min Exi Min Mat Fac Distress Signals 5 | . 1 . . . 1 3 Communications Jammed . | . . . . . . . Distress Signals . | . . . . . . . Times Spotted 53 | . 15 9 . . 6 23 Peak Tracking Total 5 | . 3 3 . . 3 5 Tactical Retreats 4 | . 3 . . . . 1 Traps | -11 -10 -10 -10 -9 -8 -7 ------- Run | Yrd Mat Min Exi Min Mat Fac Traps Triggered 7 | . 5 . . . . 2 Indirectly . | . . . . . . . Trap Hack Attempts . | . . . . . . . Triggered . | . . . . . . . Disarmed . | . . . . . . . Reprogrammed . | . . . . . . . Reused . | . . . . . . . Traps Extracted . | . . . . . . . Installed . | . . . . . . . Triggered . | . . . . . . . Machines | -11 -10 -10 -10 -9 -8 -7 ---------- Run | Yrd Mat Min Exi Min Mat Fac Machines Disabled 5 | . 1 . . . . 4 Max in Single Turn 4 | . 1 . . . . 4 Machines Repaired . | . . . . . . . Machines Dismantled . | . . . . . . . Machines Sabotaged . | . . . . . . . Overloaded Fab Kills . | . . . . . . . Hacking | -11 -10 -10 -10 -9 -8 -7 --------- Run | Yrd Mat Min Exi Min Mat Fac Machines Accessed 8 | . 1 2 4 . . 1 Terminals 2 | . 1 1 . . . . Fabricators 1 | . . . . . . 1 Repair Stations . | . . . . . . . Recycling Units . | . . . . . . . Scanalyzers . | . . . . . . . Garrison Access . | . . . . . . . Total Hacks 57 | . 1 6 49 . . 1 Successful 53 | . 1 2 49 . . 1 Failed 4 | . . 4 . . . . Catastrophic 1 | . . 1 . . . . Database Lockouts . | . . . . . . . Manual 8 | . 1 4 3 . . . Terminals 6 | . 1 5 . . . . Fabricators 1 | . . . . . . 1 Repair Stations . | . . . . . . . Recycling Units . | . . . . . . . Scanalyzers . | . . . . . . . Garrison Access . | . . . . . . . Terminal Hacks 51 | . . 2 49 . . . Record 50 | . . 1 49 . . . Open Door 1 | . . 1 . . . . Fabricator Hacks 1 | . . . . . . 1 Build 1 | . . . . . . 1 Repair Station Hacks . | . . . . . . . Recycling Unit Hacks . | . . . . . . . Scanalyzer . | . . . . . . . Garrison Access Hacks . | . . . . . . . Unauthorized Hacks 1 | . 1 . . . . . Terminals 1 | . 1 . . . . . Operators 1 | . 1 . . . . . Fabricators . | . . . . . . . Repair Stations . | . . . . . . . Recycling Units . | . . . . . . . Scanalyzers . | . . . . . . . Garrison Access . | . . . . . . . Data Cores Recovered . | . . . . . . . Used . | . . . . . . . Hacking Detections 2 | . . 1 . . . 1 Full Trace Events 1 | . . 1 . . . . Feedback Events . | . . . . . . . Feedback Blocked . | . . . . . . . Robot Schematics Acquired . | . . . . . . . Robots Built 1 | . . . . . . 1 Authchips . | . . . . . . . Time 81 | . . . . . . 81 Total Robot Build Rating 1 | . . . . . . 1 Part Schematics Acquired . | . . . . . . . Parts Built . | . . . . . . . Authchips . | . . . . . . . Time . | . . . . . . . Total Part Build Rating . | . . . . . . . Parts Repaired . | . . . . . . . Time . | . . . . . . . Parts Recycled . | . . . . . . . Recycled Matter . | . . . . . . . Retrieved Matter . | . . . . . . . Retrieved Components . | . . . . . . . Parts Scanalyzed . | . . . . . . . Part Schematics Acquired . | . . . . . . . Parts Damaged . | . . . . . . . Bothacking | -11 -10 -10 -10 -9 -8 -7 ------------ Run | Yrd Mat Min Exi Min Mat Fac Used RIF Installer . | . . . . . . . Robots Hacked . | . . . . . . . Non-combat . | . . . . . . . Combat . | . . . . . . . Robot Hacks Applied . | . . . . . . . Relay Couplers Released . | . . . . . . . Fabnet Peak Effective % . | . . . . . . . Robots Rewired . | . . . . . . . Allies Hacked . | . . . . . . . Hacks Repelled . | . . . . . . . Allies | -11 -10 -10 -10 -9 -8 -7 -------- Run | Yrd Mat Min Exi Min Mat Fac Total Allies 1 | . . . . . . 1 Largest Group 1 | . . . . . . 1 Highest-Rated Group 10 | . . . . . . 10 Highest-Rated Ally 10 | . . . . . . 10 Total Orders . | . . . . . . . Ally Attacks . | . . . . . . . Total Damage . | . . . . . . . Kills . | . . . . . . . Allies Corrupted . | . . . . . . . Allies Melted . | . . . . . . . Intel | -11 -10 -10 -10 -9 -8 -7 ------- Run | Yrd Mat Min Exi Min Mat Fac Active Infowar (turns) . | . . . . . . . Robot Analysis Total . | . . . . . . . Derelict Logs Recovered 3 | . . 2 . 1 . . Drone Launches . | . . . . . . . Drone Recoveries . | . . . . . . . Exploration | -11 -10 -10 -10 -9 -8 -7 ------------- Run | Yrd Mat Min Exi Min Mat Fac Turns Passed 5390 | 60 1200 1132 1174 287 526 1011 Spaces Moved 2982 | 35 606 649 729 180 264 519 Core 5 | 5 . . . . . . Treads 2977 | 30 606 649 729 180 264 519 Legs . | . . . . . . . Wheels . | . . . . . . . Hover . | . . . . . . . Flight . | . . . . . . . Fastest Speed 50 | 50 160 160 160 160 160 160 Average Speed 159 | 144 160 160 160 160 160 160 Slowest Speed 240 | 160 160 160 160 160 160 240 Overloaded Moves . | . . . . . . . Propulsion Burnouts . | . . . . . . . Robots Hopped . | . . . . . . . Potential Cave-ins . | . . . . . . . Cave-ins Triggered . | . . . . . . . Exploration Rate (%) 49 | 4 66 96 91 48 24 16 Regions Visited 6 Branch Regions 3 Pre-discovered Areas 1 | . . . 1 . . . Known Exits Taken 1 | . . . 1 . . . Unknown Exits Taken 5 | 1 1 1 . 1 1 . Scrap Searched 2 | . . 1 . 1 . . Spaces Dug . | . . . . . . . Terrain Destroyed 23 | . 19 . . . . 4 Melee . | . . . . . . . Projectile . | . . . . . . . AOE 23 | . 19 . . . . 4 Terrain Rammed . | . . . . . . . Walls Destroyed . | . . . . . . . Machines Disabled . | . . . . . . . Actions | -11 -10 -10 -10 -9 -8 -7 --------- Run | Yrd Mat Min Exi Min Mat Fac Total 3420 | 45 804 700 737 179 326 629 Wait 185 | . 139 2 . . 9 35 Move 2976 | 34 605 648 728 179 263 519 Hop . | . . . . . . . Pick Up 53 | 6 19 12 2 . 9 5 Fast Attach 4 | . . 1 . . . 3 Attach 31 | 5 11 3 1 . 7 4 Detach 4 | . 1 1 . . . 2 Swap 22 | . 5 3 2 . 6 6 Drop 21 | . 3 6 2 . 2 8 Fire 111 | . 18 21 . . 27 45 Melee . | . . . . . . . Ram . | . . . . . . . Kick . | . . . . . . . Crush 11 | . 3 3 . . 3 2 Escape Stasis . | . . . . . . . Rewire 2 | . . . 2 . . . Trap . | . . . . . . . Miscellaneous . | . . . . . . . Route ------- -11/Scrapyard -10/Materials (discovered 3 exits: [*Mat x2] / *Min) -10/Mines (discovered 3 exits: [*Mat x2] / *Exi) -10/Exiles (discovered 2 exits: *Min x2) -9/Mines -8/Materials -7/Factory History --------- Turn | Location | Event 31 | -11/Scrapyard | Discovered new exit (range 16) 61 | -11/Scrapyard | Entered Materials 321 | -10/Materials | Build established: Mutant 999 | -10/Materials | Discovered new exit (range 16) 1163 | -10/Materials | Discovered new exit (range 14) 1248 | -10/Materials | Discovered new exit (range 9) 1261 | -10/Materials | Entered Mines 1308 | -10/Mines | Joined a pair of Derelicts in attacking an 0b10 outpost 1455 | -10/Mines | Found the Drone Emporium 1465 | -10/Mines | Found Prototype Device 1467 | -10/Mines | Identified Bomb Drone Bay 1740 | -10/Mines | Learned Materials trap positions 1905 | -10/Mines | Discovered new exit (range 5) 2141 | -10/Mines | Discovered new exit (range 8) 2246 | -10/Mines | Build established: Scavenger-Mutant 2385 | -10/Mines | Deemed a non-threat by the Exiles lab entrance 2386 | -10/Mines | Discovered new exit (range 5) 2393 | -10/Mines | Entered Exiles 2393 | -10/Exiles | Found Exiles lab destroyed 2394 | -10/Exiles | Identified exit to Mines 3161 | -10/Exiles | Learned location of Zion (-6) 3364 | -10/Exiles | Build established: Mutant 3567 | -10/Exiles | Entered Mines 3570 | -9/Mines | Met a Derelict bent on vengeance 3809 | -9/Mines | Discovered new exit (range 8) 3839 | -9/Mines | Learned Materials emergency access door positions 3854 | -9/Mines | Entered Materials 3854 | -8/Materials | Evolved 4 slots: Power x1, Propulsion x2, Utility x1 3855 | -8/Materials | Loaded intel: 17 trap records 4152 | -8/Materials | Build established: Scavenger-Mutant 4324 | -8/Materials | Discovered new exit (range 10) 4380 | -8/Materials | Entered Factory 4380 | -7/Factory | Evolved 2 slots: Propulsion x1, Weapon x1 4892 | -7/Factory | Build established: Gunner 5286 | -7/Factory | Fabricated A-02 Transporter? 5391 | -7/Factory | Self-destructed Last Messages --------------- S-27 Virus destroyed. Acquired 23 matter. S-27 Virus destroyed. Overheating: System interference. Minigun temporarily disabled. Gatling Laser temporarily disabled. R-06 Scavenger collects Lgt. Nuclear Core. Acquired 61 matter. R-06 Scavenger collects Imp. Light Armor Plating. R-06 Scavenger collects Flak Gun. Slammed into R-06 Scavenger. R-06 Scavenger knocked back. R-06 Scavenger collects Autogun. Slammed into R-06 Scavenger. R-06 Scavenger collects Imp. Deuterium Engine. K-01 Serf collects debris. Acquired 35 matter. K-01 Serf collects debris. W-25 Informer sends out distress signal. Map ----- +----------------------------------------------------+ | ?????????????????????????????????????????????????? | | ?????????????????????????????????????????????????? | | ?????????????????????????????????????????????????? | | ?????????????????????????????????????????????????? | | ?????????????????????????????????????????????????? | | ?????????????????????????????????????????????????? | | ?????????????????????????????????????????????????? | | ?????????????????????????????????????????????????? | | ?????????????????????????????????????????????????? | | ?????????????????????????????????????????????????? | | ?????????????????????????????????????????????????? | | ?????????????????????????????????????????????????? | | ?????????????????????????????????????????????????? | | ??????????????????????? ?????????????????????????? | | ??????????????????????# ?????????????????????????? | | ??????????????????????# ?????????????????????????? | | ??????????????????????# ?????????????????????????? | | ??????????????????????# ?????????????????????????? | | ??????????????????????# ?????????????????????????? | | ??????????????????????# #????????????????????????? | | ??????????????????????# T????????#???????????????? | | ??????????????????????# ??????# ###?????????????? | | ?????????????????????## ###### #?????????????? | | ?????????????????????# w #?????????????? | | ?????????????????????# Y +?????????????? | | ?????????????????????# @ #?????????????? | | ?????????????????????# ##### #?????????????? | | ????????????????????## ##?#########????????????? | | ????????????????????# # #????????????? | | ????????????######### k # #????????????? | | ?????????? + #????????????? | | ???????????#+######## # """ """ #????????????? | | ????????????????????# # """ ""???????????????? | | ????????????????????### ###?""" "????????????????? | | ??????????????????????# #??? ????????????????? | | ??????????????????????# #???? ????????????????? | | ??????????????????????# #????#####???????????????? | | ??????????????????????# #????????????????????????? | | ????????????? """ ##### ##########???????????????? | | ????????????? """ + %[ #???????????????? | | ???????????+ ###### #???????????????? | | ????????????????######## #########???????? | | ????????????????"""""" + ????? | | ????????????????"""""" ###### ####???????? | | ??????????????? """""" #????# """" #??????????? | | ???????????#[! """""" #????# """" #??????????? | | ???????????# #????# """" #??????????? | | ???????????# ! #????#* #?######???? | | ???????????+ #????# %"" #? """ #???? | | ???????????#############????# !" ! # """ #???? | +----------------------------------------------------+ Best States ------------- Heat Dissipation 48 Energy Generation 24 Energy Capacity 430 Matter Stores 300 Matter Capacity 300 Sight Range 16 Terrain Scan Density 10 Additional Mass Support 6 Weapon Cycling 15 Evasion (%) 40 Recoil Reduction 4 Item Schematics ----------------- None Robot Schematics ------------------ None Fabricated ------------ A-02 Transporter | x1 | -7/Factory | Preloaded Repaired ---------- Nothing Alien Tech Used ----------------- None Achievements -------------- None Challenges ------------ None Game ------ Seed AlphaNetworkedProtomatter Manual? 0 Play Time 00:42:33 Cumulative 44.4 hours Start 2025.08.31 @ 01:56:03 End 2025.08.31 @ 03:05:26 Sessions 1 Manual Loads 0 Difficulty Rogue Special Mode None Game No. 28 Rogue 8 Adventurer 1 Explorer 19 Win Type - Total 5 Types 3/0/0/2/0/0/0/0/0/0 Lore% 13 Gallery% 34 Achievement% 35 Wizard Run 0 Options --------- Layout 1 ASCII 0 Keyboard 0 Movement Mouse Keybinds 0 Fullscreen 1 Font 24/Smallcaps Map View 50x35 Zoom Use 0% Tactical HUD 0 Map Filters NONE Filters NONE Steam 1 RUN: 6cdee395-0d11-415b-9c16-3024957a521d